[Event "9th RTU Open 2019"]
[Site "Riga"]
[Date "2019.08.06"]
[Round "2.20"]
[White "Li, Hong"]
[Black "Thybo, Jesper Sondergaard"]
[Result "1/2-1/2"]
[ECO "E46"]
[WhiteElo "2328"]
[BlackElo "2528"]
[Annotator "ChessBase"]
[PlyCount "102"]
[EventDate "2019.08.05"]
[EventType "swiss"]
[EventCountry "LAT"]
[SourceTitle "playchess.com"]
[Source "ChessBase"]
[SourceQuality "1"]
[TimeControl "5400+30"]

1. d4 {[%emt 0:00:00]} Nf6 {[%emt 0:00:00]} 2. c4 {[%emt 0:00:11]} e6 {[%emt 0:00:00]} 3. Nc3 {[%emt 0:00:48]} Bb4 {[%emt 0:00:14]} 4. e3 {[%emt 0:01:46]} O-O {[%emt 0:00:28]} 5. Nge2 {[%emt 0:00:16]} d5 {[%emt 0:00:24]} 6. a3 {[%emt 0:00:17]} Be7 {[%emt 0:00:06]} 7. cxd5 {[%emt 0:01:36]} exd5 {[%emt 0:00:09]} 8. Nf4 {[%emt 0:00:03]} a5 {[%emt 0:08:19]} 9. Bd3 {[%emt 0:03:03]} c6 {[%emt 0:00:57]} 10. O-O {[%emt 0:00:07]} Na6 {[%emt 0:02:37]} 11. Bd2 {[%emt 0:03:55]} Nc7 {[%emt 0:00:45]} 12. Qc2 {[%emt 0:02:52]} Re8 {[%emt 0:04:38]} 13. f3 {[%emt 0:08:51]} Ne6 {[%emt 0:07:06]} 14. Nxe6 {[%emt 0:03:22]} Bxe6 {[%emt 0:00:28]} 15. Ne2 {[%emt 0:00:05]} Qb6 {[%emt 0:09:37]} 16. g4 {[%emt 0:12:47]} g6 {[%emt 0:09:26]} 17. Ng3 {[%emt 0:13:35]} c5 {[%emt 0:02:01]} 18. Bc3 {[%emt 0:01:20]} Nd7 {[%emt 0:04:30]} 19. Rae1 {[%emt 0:03:57]} Rac8 {[%emt 0:06:46]} 20. Qf2 {[%emt 0:03:34]} cxd4 {[%emt 0:09:05]} 21. Bxd4 {[%emt 0:00:07]} Bc5 {[%emt 0:00:07]} 22. h4 {[%emt 0:01:33]} Bxd4 {[%emt 0:04:30]} 23. exd4 {[%emt 0:00:05]} Qb3 {[%emt 0:00:12]} 24. Re3 {[%emt 0:01:17]} Qb6 {[%emt 0:01:12]} 25. Re2 {[%emt 0:00:29]} Nb8 {[%emt 0:01:07]} 26. Rd1 {[%emt 0:05:23]} Bd7 {[%emt 0:01:08]} 27. Rdd2 {[%emt 0:08:18]} Bb5 {[%emt 0:02:40]} 28. Bxb5 {[%emt 0:03:23]} Qxb5 {[%emt 0:00:14]} 29. Rxe8+ {[%emt 0:01:44]} Rxe8 {[%emt 0:00:13]} 30. Re2 {[%emt 0:01:31]} Kf8 {[%emt 0:06:56]} 31. Rxe8+ {[%emt 0:03:01]} Qxe8 {[%emt 0:00:08]} 32. Qd2 {[%emt 0:02:59]} Nc6 {[%emt 0:00:45]} 33. h5 {[%emt 0:00:35]} Qd8 {[%emt 0:01:09]} 34. Kg2 {[%emt 0:01:29]} Qf6 {[%emt 0:00:49]} 35. hxg6 {[%emt 0:00:20]} fxg6 {[%emt 0:02:14]} 36. Ne2 {[%emt 0:00:22]} Kf7 {[%emt 0:02:06]} 37. b4 {[%emt 0:02:59]} axb4 {[%emt 0:01:15]} 38. axb4 {[%emt 0:00:02]} h5 {[%emt 0:02:43]} 39. b5 {[%emt 0:01:21]} Ne7 {[%emt 0:00:48]} 40. Qf4 {[%emt 0:03:33]} Qxf4 {[%emt 0:02:15]} 41. Nxf4 {[%emt 0:00:03]} h4 {[%emt 0:00:45]} 42. Nd3 {[%emt 0:01:35]} Nc8 {[%emt 0:03:12]} 43. Nf4 {[%emt 0:01:36]} Ne7 {[%emt 0:01:33]} 44. Nd3 {[%emt 0:00:21]} Nc8 {[%emt 0:00:23]} 45. Nf4 {[%emt 0:00:04]} Nd6 {[%emt 0:00:59]} 46. b6 {[%emt 0:00:05]} Nb5 {[%emt 0:00:44]} 47. Nxd5 {[%emt 0:00:05]} Nxd4 {[%emt 0:00:04]} 48. f4 {[%emt 0:01:18]} Ke6 {[%emt 0:00:24]} 49. Ne3 {[%emt 0:00:12]} Ne2 {[%emt 0:03:09]} 50. Kh3 {[%emt 0:02:54]} Nxf4+ {[%emt 0:00:32]} 51. Kxh4 {[%emt 0:00:03]} Kf7 {[%emt 0:00:53]} 1/2-1/2

[Event "9th RTU Open 2019"]
[Site "Riga"]
[Date "2019.08.06"]
[Round "2.21"]
[White "Reizniece-Ozola, Dana"]
[Black "Sulskis, Sarunas"]
[Result "1/2-1/2"]
[ECO "A37"]
[WhiteElo "2323"]
[BlackElo "2519"]
[Annotator "ChessBase"]
[PlyCount "94"]
[EventDate "2019.08.05"]
[EventType "swiss"]
[EventCountry "LAT"]
[SourceTitle "playchess.com"]
[Source "ChessBase"]
[SourceQuality "1"]
[TimeControl "5400+30"]

1. c4 {[%emt 0:00:00]} c5 {[%emt 0:00:00]} 2. Nf3 {[%emt 0:00:34]} Nc6 {[%emt 0:00:14]} 3. Nc3 {[%emt 0:00:34]} e5 {[%emt 0:01:30]} 4. g3 {[%emt 0:00:38]} g6 {[%emt 0:06:30]} 5. a3 {[%emt 0:06:13]} Bg7 {[%emt 0:01:38]} 6. Rb1 {[%emt 0:00:45]} Nge7 {[%emt 0:02:54]} 7. Bg2 {[%emt 0:01:44]} O-O {[%emt 0:05:29]} 8. O-O {[%emt 0:04:09]} d5 {[%emt 0:08:57]} 9. cxd5 {[%emt 0:00:50]} Nxd5 {[%emt 0:00:12]} 10. Nxe5 {[%emt 0:01:24]} Nxc3 {[%emt 0:01:13]} 11. Nxc6 {[%emt 0:00:19]} Nxd1 {[%emt 0:14:22]} 12. Nxd8 {[%emt 0:00:07]} Bg4 {[%emt 0:00:05]} 13. Nxb7 {[%emt 0:09:34]} Bxe2 {[%emt 0:05:00]} 14. Nxc5 {[%emt 0:05:25]} Rae8 {[%emt 0:11:00]} 15. Nd7 {[%emt 0:06:09]} Bd4 {[%emt 0:02:53]} 16. Nxf8 {[%emt 0:06:07]} Nxf2 {[%emt 0:02:47]} 17. Nd7 {[%emt 0:06:21]} Bd3 {[%emt 0:04:36]} 18. Ra1 {[%emt 0:03:55]} Re2 {[%emt 0:02:45]} 19. Nf6+ {[%emt 0:14:56]} Bxf6 {[%emt 0:00:21]} 20. Bf3 {[%emt 0:00:05]} Nh3+ {[%emt 0:01:49]} 21. Kh1 {[%emt 0:00:04]} Re7 {[%emt 0:01:33]} 22. Bg2 {[%emt 0:14:40]} Nf2+ {[%emt 0:02:24]} 23. Rxf2 {[%emt 0:00:13]} Re1+ {[%emt 0:00:15]} 24. Rf1 {[%emt 0:01:39]} Bxf1 {[%emt 0:01:19]} 25. Bxf1 {[%emt 0:00:02]} Rxf1+ {[%emt 0:00:31]} 26. Kg2 {[%emt 0:00:01]} Rd1 {[%emt 0:02:51]} 27. Kf2 {[%emt 0:02:37]} Be5 {[%emt 0:00:44]} 28. Rb1 {[%emt 0:01:05]} f5 {[%emt 0:00:59]} 29. b4 {[%emt 0:01:16]} Kf7 {[%emt 0:02:57]} 30. a4 {[%emt 0:01:47]} h5 {[%emt 0:00:45]} 31. a5 {[%emt 0:02:49]} Bc7 {[%emt 0:01:25]} 32. Ra1 {[%emt 0:02:47]} Be5 {[%emt 0:07:51]} 33. Rb1 {[%emt 0:00:15]} Ke6 {[%emt 0:03:43]} 34. b5 {[%emt 0:01:46]} Kd7 {[%emt 0:00:05]} 35. d4 {[%emt 0:03:10]} Bxd4+ {[%emt 0:02:14]} 36. Ke2 {[%emt 0:00:01]} Rh1 {[%emt 0:00:13]} 37. b6 {[%emt 0:01:11]} axb6 {[%emt 0:01:09]} 38. axb6 {[%emt 0:00:04]} Be5 {[%emt 0:01:39]} 39. Rb5 {[%emt 0:02:16]} Rxc1 {[%emt 0:00:49]} 40. Rxe5 {[%emt 0:00:01]} Rb1 {[%emt 0:01:02]} 41. Kf3 {[%emt 0:00:28]} Kd6 {[%emt 0:00:35]} 42. Re8 {[%emt 0:01:33]} Rxb6 {[%emt 0:00:26]} 43. Kf4 {[%emt 0:00:33]} Rb2 {[%emt 0:00:40]} 44. Kg5 {[%emt 0:00:48]} Rxh2 {[%emt 0:00:26]} 45. Kxg6 {[%emt 0:00:07]} Rh3 {[%emt 0:00:42]} 46. Kxf5 {[%emt 0:00:25]} Rxg3 {[%emt 0:00:09]} 47. Rh8 {[%emt 0:00:18]} Kd5 {[%emt 0:00:13]} 1/2-1/2

[Event "9th RTU Open 2019"]
[Site "Riga"]
[Date "2019.08.06"]
[Round "2.22"]
[White "Nevednichy, Vladislav"]
[Black "Dordzhieva, Dinara"]
[Result "1-0"]
[ECO "B81"]
[WhiteElo "2516"]
[BlackElo "2319"]
[Annotator "ChessBase"]
[PlyCount "145"]
[EventDate "2019.08.05"]
[EventType "swiss"]
[EventCountry "LAT"]
[SourceTitle "playchess.com"]
[Source "ChessBase"]
[SourceQuality "1"]
[TimeControl "5400+30"]

1. e4 {[%emt 0:00:00]} c5 {[%emt 0:00:00]} 2. Nf3 {[%emt 0:00:00]} d6 {[%emt 0:00:00]} 3. d4 {[%emt 0:00:04]} cxd4 {[%emt 0:00:00]} 4. Nxd4 {[%emt 0:00:02]} Nf6 {[%emt 0:00:00]} 5. Nc3 {[%emt 0:00:02]} a6 {[%emt 0:00:00]} 6. h3 {[%emt 0:01:06]} e6 {[%emt 0:00:31]} 7. g4 {[%emt 0:00:07]} h6 {[%emt 0:00:04]} 8. f4 {[%emt 0:01:14]} Nc6 {[%emt 0:00:59]} 9. Be3 {[%emt 0:00:09]} Be7 {[%emt 0:00:41]} 10. Qf3 {[%emt 0:04:09]} Qc7 {[%emt 0:06:00]} 11. O-O-O {[%emt 0:02:26]} Bd7 {[%emt 0:03:29]} 12. Nb3 {[%emt 0:03:55]} Rc8 {[%emt 0:02:57]} 13. Kb1 {[%emt 0:00:12]} Na5 {[%emt 0:14:04]} 14. g5 {[%emt 0:15:36]} hxg5 {[%emt 0:02:13]} 15. fxg5 {[%emt 0:00:05]} Nh5 {[%emt 0:01:37]} 16. Be2 {[%emt 0:05:53]} g6 {[%emt 0:04:05]} 17. Rdf1 {[%emt 0:01:21]} Rf8 {[%emt 0:18:58]} 18. Qf2 {[%emt 0:02:09]} Nc4 {[%emt 0:00:18]} 19. Bxh5 {[%emt 0:01:15]} Nxe3 {[%emt 0:05:27]} 20. Qxe3 {[%emt 0:00:18]} gxh5 {[%emt 0:00:03]} 21. Qe2 {[%emt 0:16:39]} Bxg5 {[%emt 0:14:20]} 22. Qxh5 {[%emt 0:00:14]} Qd8 {[%emt 0:00:12]} 23. Rh2 {[%emt 0:05:54]} Qe7 {[%emt 0:01:31]} 24. Rhf2 {[%emt 0:00:54]} b5 {[%emt 0:03:50]} 25. a3 {[%emt 0:02:39]} Rc4 {[%emt 0:02:36]} 26. Rf3 {[%emt 0:07:15]} Bc8 {[%emt 0:04:40]} 27. h4 {[%emt 0:03:35]} Bxh4 {[%emt 0:01:40]} 28. Nxb5 {[%emt 0:00:05]} Rc6 {[%emt 0:03:35]} 29. N3d4 {[%emt 0:04:09]} Rb6 {[%emt 0:01:55]} 30. Rc3 {[%emt 0:11:16]} Kd8 {[%emt 0:05:35]} 31. Nc6+ {[%emt 0:02:35]} Rxc6 {[%emt 0:00:23]} 32. Rxc6 {[%emt 0:00:03]} axb5 {[%emt 0:00:18]} 33. Qxb5 {[%emt 0:00:20]} Qd7 {[%emt 0:01:15]} 34. Qb6+ {[%emt 0:00:51]} Ke8 {[%emt 0:00:02]} 35. Rxd6 {[%emt 0:01:25]} Qb7 {[%emt 0:00:10]} 36. Qa5 {[%emt 0:03:41]} Be7 {[%emt 0:00:47]} 37. Rb6 {[%emt 0:00:56]} Qc7 {[%emt 0:00:29]} 38. Qa4+ {[%emt 0:00:55]} Qd7 {[%emt 0:01:27]} 39. Qa8 {[%emt 0:00:34]} f6 {[%emt 0:00:30]} 40. a4 {[%emt 0:00:38]} Kf7 {[%emt 0:01:02]} 41. a5 {[%emt 0:00:12]} Qd4 {[%emt 0:00:26]} 42. Rb3 {[%emt 0:01:19]} Qc4 {[%emt 0:02:06]} 43. Rc1 {[%emt 0:01:23]} Bd7 {[%emt 0:00:22]} 44. Qa7 {[%emt 0:00:17]} Bc6 {[%emt 0:00:25]} 45. e5 {[%emt 0:00:55]} f5 {[%emt 0:00:46]} 46. Qc7 {[%emt 0:00:26]} Bd5 {[%emt 0:00:33]} 47. Qxc4 {[%emt 0:00:24]} Bxc4 {[%emt 0:00:03]} 48. Rc3 {[%emt 0:00:47]} Bd5 {[%emt 0:00:08]} 49. Rc7 {[%emt 0:00:03]} Ra8 {[%emt 0:00:46]} 50. b4 {[%emt 0:00:08]} Ke8 {[%emt 0:00:06]} 51. Rg1 {[%emt 0:02:23]} Bxb4 {[%emt 0:00:18]} 52. Rg8+ {[%emt 0:00:09]} Bf8 {[%emt 0:00:01]} 53. c4 {[%emt 0:00:52]} Be4+ {[%emt 0:00:28]} 54. Kc1 {[%emt 0:00:03]} f4 {[%emt 0:00:14]} 55. Kd2 {[%emt 0:00:05]} Rd8+ {[%emt 0:01:01]} 56. Ke1 {[%emt 0:00:17]} Rb8 {[%emt 0:00:10]} 57. a6 {[%emt 0:01:53]} Rb1+ {[%emt 0:00:20]} 58. Kd2 {[%emt 0:00:09]} Rb2+ {[%emt 0:00:13]} 59. Kc3 {[%emt 0:00:17]} Rb8 {[%emt 0:00:03]} 60. a7 {[%emt 0:00:12]} Rd8 {[%emt 0:00:03]} 61. c5 {[%emt 0:00:54]} f3 {[%emt 0:00:28]} 62. Rg4 {[%emt 0:01:08]} Bh6 {[%emt 0:01:09]} 63. Rg8+ {[%emt 0:00:31]} Bf8 {[%emt 0:00:03]} 64. Rg4 {[%emt 0:01:14]} Bh6 {[%emt 0:00:53]} 65. Rh4 {[%emt 0:00:57]} f2 {[%emt 0:02:57]} 66. Rxh6 {[%emt 0:00:05]} f1=Q {[%emt 0:00:40]} 67. Rxe6+ {[%emt 0:00:07]} Kf8 {[%emt 0:00:17]} 68. Rf6+ {[%emt 0:00:02]} Qxf6 {[%emt 0:00:32]} 69. exf6 {[%emt 0:00:02]} Ba8 {[%emt 0:00:43]} 70. c6 {[%emt 0:00:20]} Bxc6 {[%emt 0:00:29]} 71. Rxc6 {[%emt 0:00:05]} Kf7 {[%emt 0:00:02]} 72. Ra6 {[%emt 0:00:09]} Ra8 {[%emt 0:00:03]} 73. Kd4 {[%emt 0:00:05]} 1-0

[Event "9th RTU Open 2019"]
[Site "Riga"]
[Date "2019.08.06"]
[Round "2.23"]
[White "Tomov, Georgi"]
[Black "Vishnu Prasanna. V"]
[Result "0-1"]
[ECO "D02"]
[WhiteElo "2320"]
[BlackElo "2507"]
[Annotator "ChessBase"]
[PlyCount "56"]
[EventDate "2019.08.05"]
[EventType "swiss"]
[EventCountry "LAT"]
[SourceTitle "playchess.com"]
[Source "ChessBase"]
[SourceQuality "1"]
[TimeControl "5400+30"]

1. d4 {[%emt 0:00:00]} Nf6 {[%emt 0:00:00]} 2. Nf3 {[%emt 0:00:00]} d5 {[%emt 0:00:17]} 3. Bf4 {[%emt 0:03:28]} c5 {[%emt 0:00:27]} 4. e3 {[%emt 0:00:06]} Nc6 {[%emt 0:00:13]} 5. Nbd2 {[%emt 0:00:11]} Nh5 {[%emt 0:00:54]} 6. Be5 {[%emt 0:05:23]} f6 {[%emt 0:01:23]} 7. Bg3 {[%emt 0:00:18]} cxd4 {[%emt 0:01:00]} 8. exd4 {[%emt 0:02:34]} g6 {[%emt 0:00:14]} 9. c3 {[%emt 0:03:40]} Bg7 {[%emt 0:04:28]} 10. Bb5 {[%emt 0:04:57]} O-O {[%emt 0:00:53]} 11. Qa4 {[%emt 0:05:55]} e5 {[%emt 0:12:57]} 12. dxe5 {[%emt 0:10:33]} fxe5 {[%emt 0:01:25]} 13. Bh4 {[%emt 0:02:37]} Qb6 {[%emt 0:05:28]} 14. Bxc6 {[%emt 0:15:03]} bxc6 {[%emt 0:02:15]} 15. Be7 {[%emt 0:00:17]} Rf7 {[%emt 0:02:27]} 16. Qa3 {[%emt 0:00:43]} e4 {[%emt 0:06:52]} 17. Bc5 {[%emt 0:05:19]} Qd8 {[%emt 0:00:36]} 18. Nd4 {[%emt 0:01:01]} Nf4 {[%emt 0:07:21]} 19. Nxc6 {[%emt 0:00:42]} Nd3+ {[%emt 0:00:16]} 20. Kd1 {[%emt 0:01:26]} Qc7 {[%emt 0:06:26]} 21. Ne7+ {[%emt 0:03:41]} Rxe7 {[%emt 0:00:32]} 22. Bxe7 {[%emt 0:00:12]} Nxf2+ {[%emt 0:00:08]} 23. Kc2 {[%emt 0:01:22]} e3 {[%emt 0:00:10]} 24. Rhf1 {[%emt 0:15:15]} Bf5+ {[%emt 0:01:11]} 25. Kb3 {[%emt 0:00:08]} Rb8+ {[%emt 0:01:07]} 26. Bb4 {[%emt 0:00:08]} exd2 {[%emt 0:00:05]} 27. Qa6 {[%emt 0:00:29]} Nd3 {[%emt 0:00:14]} 28. Ka3 {[%emt 0:04:40]} Nxb4 {[%emt 0:01:08]} 0-1

[Event "9th RTU Open 2019"]
[Site "Riga"]
[Date "2019.08.06"]
[Round "2.24"]
[White "Grigorov, Grigor"]
[Black "Haitin, Ilja"]
[Result "1-0"]
[ECO "B36"]
[WhiteElo "2501"]
[BlackElo "2315"]
[Annotator "ChessBase"]
[PlyCount "119"]
[EventDate "2019.08.05"]
[EventType "swiss"]
[EventCountry "LAT"]
[SourceTitle "playchess.com"]
[Source "ChessBase"]
[SourceQuality "1"]
[TimeControl "5400+30"]

1. Nf3 {[%emt 0:00:00]} c5 {[%emt 0:00:02]} 2. c4 {[%emt 0:00:00]} g6 {[%emt 0:00:19]} 3. e4 {[%emt 0:00:47]} Nc6 {[%emt 0:00:16]} 4. d4 {[%emt 0:00:07]} cxd4 {[%emt 0:00:16]} 5. Nxd4 {[%emt 0:00:07]} Nf6 {[%emt 0:00:29]} 6. Nc3 {[%emt 0:00:17]} Nxd4 {[%emt 0:00:07]} 7. Qxd4 {[%emt 0:00:09]} d6 {[%emt 0:00:03]} 8. Be3 {[%emt 0:02:10]} Bg7 {[%emt 0:00:16]} 9. f3 {[%emt 0:00:27]} O-O {[%emt 0:00:26]} 10. Qd2 {[%emt 0:00:04]} a5 {[%emt 0:03:01]} 11. b3 {[%emt 0:00:26]} a4 {[%emt 0:02:14]} 12. b4 {[%emt 0:00:27]} Be6 {[%emt 0:01:50]} 13. Rc1 {[%emt 0:01:34]} a3 {[%emt 0:03:15]} 14. Be2 {[%emt 0:01:00]} Nd7 {[%emt 0:06:37]} 15. O-O {[%emt 0:01:06]} Nb6 {[%emt 0:23:03]} 16. Nd5 {[%emt 0:04:22]} Nxd5 {[%emt 0:08:28]} 17. exd5 {[%emt 0:10:10]} Bc8 {[%emt 0:02:00]} 18. c5 {[%emt 0:05:03]} e6 {[%emt 0:01:30]} 19. Bc4 {[%emt 0:10:15]} exd5 {[%emt 0:03:47]} 20. Bxd5 {[%emt 0:11:27]} dxc5 {[%emt 0:02:14]} 21. Bxc5 {[%emt 0:00:08]} Re8 {[%emt 0:01:32]} 22. Rfd1 {[%emt 0:05:28]} Be6 {[%emt 0:12:36]} 23. Bxe6 {[%emt 0:01:10]} Qxd2 {[%emt 0:01:09]} 24. Bxf7+ {[%emt 0:00:43]} Kxf7 {[%emt 0:00:06]} 25. Rxd2 {[%emt 0:00:06]} Rad8 {[%emt 0:01:00]} 26. Rxd8 {[%emt 0:06:34]} Rxd8 {[%emt 0:00:06]} 27. Be3 {[%emt 0:00:11]} Be5 {[%emt 0:02:53]} 28. Kf2 {[%emt 0:01:24]} Ke6 {[%emt 0:03:13]} 29. f4 {[%emt 0:06:21]} Bd6 {[%emt 0:01:43]} 30. b5 {[%emt 0:00:21]} Rf8 {[%emt 0:02:36]} 31. Kf3 {[%emt 0:01:21]} Rf5 {[%emt 0:10:36]} 32. Rb1 {[%emt 0:00:41]} Kd5 {[%emt 0:00:51]} 33. g4 {[%emt 0:09:41]} Rf6 {[%emt 0:00:27]} 34. g5 {[%emt 0:00:06]} Re6 {[%emt 0:04:14]} 35. Rc1 {[%emt 0:00:11]} Re7 {[%emt 0:01:55]} 36. Rd1+ {[%emt 0:02:17]} Ke6 {[%emt 0:00:03]} 37. b6 {[%emt 0:03:32]} Re8 {[%emt 0:00:37]} 38. Rc1 {[%emt 0:03:06]} Kd5 {[%emt 0:01:00]} 39. h4 {[%emt 0:00:15]} Ra8 {[%emt 0:00:45]} 40. h5 {[%emt 0:03:18]} Ra4 {[%emt 0:00:57]} 41. Rd1+ {[%emt 0:01:05]} Ke6 {[%emt 0:00:21]} 42. Rh1 {[%emt 0:00:28]} Kf5 {[%emt 0:00:48]} 43. hxg6 {[%emt 0:00:07]} hxg6 {[%emt 0:00:11]} 44. Rh7 {[%emt 0:00:06]} Rb4 {[%emt 0:01:29]} 45. Rxb7 {[%emt 0:00:48]} Rb2 {[%emt 0:00:35]} 46. Rf7+ {[%emt 0:00:40]} Ke6 {[%emt 0:00:00]} 47. Rf6+ {[%emt 0:00:51]} Kd5 {[%emt 0:00:01]} 48. Rxg6 {[%emt 0:00:57]} Rxa2 {[%emt 0:00:08]} 49. Rg8 {[%emt 0:00:07]} Rb2 {[%emt 0:01:52]} 50. Ra8 {[%emt 0:00:14]} a2 {[%emt 0:00:26]} 51. g6 {[%emt 0:00:46]} Bf8 {[%emt 0:00:26]} 52. b7 {[%emt 0:01:01]} Bg7 {[%emt 0:00:26]} 53. Rxa2 {[%emt 0:00:18]} Rxb7 {[%emt 0:00:12]} 54. Ra7 {[%emt 0:00:08]} Rxa7 {[%emt 0:00:40]} 55. Bxa7 {[%emt 0:00:06]} Ke6 {[%emt 0:00:17]} 56. Ke4 {[%emt 0:00:12]} Bh6 {[%emt 0:01:01]} 57. Bd4 {[%emt 0:00:12]} Ke7 {[%emt 0:00:11]} 58. f5 {[%emt 0:00:27]} Bg5 {[%emt 0:00:12]} 59. Be5 {[%emt 0:00:10]} Bh6 {[%emt 0:00:54]} 60. Kf3 {[%emt 0:00:58]} 1-0

[Event "9th RTU Open 2019"]
[Site "Riga"]
[Date "2019.08.06"]
[Round "2.25"]
[White "Klabis, Rokas"]
[Black "Laurusas, Tomas"]
[Result "0-1"]
[ECO "B13"]
[WhiteElo "2316"]
[BlackElo "2511"]
[Annotator "ChessBase"]
[PlyCount "82"]
[EventDate "2019.08.05"]
[EventType "swiss"]
[EventCountry "LAT"]
[SourceTitle "playchess.com"]
[Source "ChessBase"]
[SourceQuality "1"]
[TimeControl "5400+30"]

1. e4 {[%emt 0:00:00]} c6 {[%emt 0:00:00]} 2. d4 {[%emt 0:00:00]} d5 {[%emt 0:00:00]} 3. exd5 {[%emt 0:00:44]} cxd5 {[%emt 0:00:13]} 4. Bd3 {[%emt 0:00:05]} Nc6 {[%emt 0:00:09]} 5. c3 {[%emt 0:00:04]} Nf6 {[%emt 0:00:26]} 6. Nf3 {[%emt 0:02:50]} Bg4 {[%emt 0:01:28]} 7. O-O {[%emt 0:00:19]} e6 {[%emt 0:04:34]} 8. Be2 {[%emt 0:09:49]} Qc7 {[%emt 0:03:50]} 9. h3 {[%emt 0:06:55]} Bf5 {[%emt 0:15:52]} 10. Nh4 {[%emt 0:04:32]} Be4 {[%emt 0:01:34]} 11. Nd2 {[%emt 0:06:45]} h6 {[%emt 0:05:46]} 12. Nxe4 {[%emt 0:10:24]} dxe4 {[%emt 0:00:21]} 13. g3 {[%emt 0:00:05]} O-O-O {[%emt 0:00:13]} 14. Qa4 {[%emt 0:03:05]} Nd5 {[%emt 0:03:31]} 15. Ng2 {[%emt 0:03:02]} Bd6 {[%emt 0:00:43]} 16. Bb5 {[%emt 0:09:01]} Nb6 {[%emt 0:06:01]} 17. Qd1 {[%emt 0:00:43]} f5 {[%emt 0:07:06]} 18. a4 {[%emt 0:05:27]} a6 {[%emt 0:01:45]} 19. Bxc6 {[%emt 0:01:29]} Qxc6 {[%emt 0:00:02]} 20. b4 {[%emt 0:06:48]} g5 {[%emt 0:13:24]} 21. b5 {[%emt 0:08:54]} axb5 {[%emt 0:00:13]} 22. axb5 {[%emt 0:00:03]} Qxb5 {[%emt 0:00:06]} 23. Ba3 {[%emt 0:04:23]} Bxa3 {[%emt 0:00:47]} 24. Rxa3 {[%emt 0:00:04]} Nc4 {[%emt 0:00:08]} 25. Rb3 {[%emt 0:00:23]} Qc6 {[%emt 0:00:25]} 26. Qe2 {[%emt 0:04:15]} Rh7 {[%emt 0:01:53]} 27. Rfb1 {[%emt 0:01:12]} f4 {[%emt 0:07:21]} 28. Rb5 {[%emt 0:04:29]} b6 {[%emt 0:04:31]} 29. gxf4 {[%emt 0:04:11]} gxf4 {[%emt 0:01:04]} 30. Qg4 {[%emt 0:00:09]} Rhh8 {[%emt 0:10:48]} 31. Qxf4 {[%emt 0:03:18]} Rhg8 {[%emt 0:00:06]} 32. Kh1 {[%emt 0:01:58]} e3 {[%emt 0:01:55]} 33. f3 {[%emt 0:00:02]} Rdf8 {[%emt 0:01:28]} 34. Rc5 {[%emt 0:00:19]} Qxc5 {[%emt 0:00:08]} 35. dxc5 {[%emt 0:00:02]} Rxf4 {[%emt 0:00:10]} 36. Nxf4 {[%emt 0:00:04]} bxc5 {[%emt 0:04:47]} 37. Nxe6 {[%emt 0:01:33]} Nd2 {[%emt 0:00:26]} 38. Ra1 {[%emt 0:00:02]} Rg3 {[%emt 0:01:42]} 39. Nxc5 {[%emt 0:00:34]} e2 {[%emt 0:00:59]} 40. Ne4 {[%emt 0:01:03]} Nxe4 {[%emt 0:00:05]} 41. fxe4 {[%emt 0:00:03]} Rd3 {[%emt 0:00:04]} 0-1

[Event "9th RTU Open 2019"]
[Site "Riga"]
[Date "2019.08.06"]
[Round "2.26"]
[White "Salomon, Johan"]
[Black "Sharma, Dinesh K."]
[Result "1/2-1/2"]
[ECO "A07"]
[WhiteElo "2499"]
[BlackElo "2299"]
[Annotator "ChessBase"]
[PlyCount "133"]
[EventDate "2019.08.05"]
[EventType "swiss"]
[EventCountry "LAT"]
[SourceTitle "playchess.com"]
[Source "ChessBase"]
[SourceQuality "1"]
[TimeControl "5400+30"]

1. Nf3 {[%emt 0:00:00]} d5 {[%emt 0:00:00]} 2. g3 {[%emt 0:00:00]} c6 {[%emt 0:01:40]} 3. Bg2 {[%emt 0:00:00]} Bg4 {[%emt 0:00:07]} 4. O-O {[%emt 0:00:00]} Nd7 {[%emt 0:00:05]} 5. h3 {[%emt 0:00:06]} Bh5 {[%emt 0:01:25]} 6. d4 {[%emt 0:00:06]} Ngf6 {[%emt 0:01:03]} 7. c4 {[%emt 0:01:52]} e6 {[%emt 0:06:34]} 8. cxd5 {[%emt 0:00:41]} exd5 {[%emt 0:00:43]} 9. Nh4 {[%emt 0:00:00]} Bg6 {[%emt 0:00:33]} 10. Nc3 {[%emt 0:02:17]} Be7 {[%emt 0:00:32]} 11. f3 {[%emt 0:01:15]} O-O {[%emt 0:02:40]} 12. Nxg6 {[%emt 0:08:35]} hxg6 {[%emt 0:01:16]} 13. e4 {[%emt 0:00:08]} dxe4 {[%emt 0:07:22]} 14. fxe4 {[%emt 0:00:06]} Nb6 {[%emt 0:00:54]} 15. a4 {[%emt 0:25:05]} a5 {[%emt 0:01:27]} 16. Be3 {[%emt 0:00:27]} Nc4 {[%emt 0:01:16]} 17. Bf2 {[%emt 0:01:20]} Bb4 {[%emt 0:01:37]} 18. Qe2 {[%emt 0:02:26]} Nb6 {[%emt 0:00:56]} 19. Qc2 {[%emt 0:04:40]} Re8 {[%emt 0:02:47]} 20. Rad1 {[%emt 0:05:00]} Rc8 {[%emt 0:03:48]} 21. Na2 {[%emt 0:01:01]} Qe7 {[%emt 0:02:10]} 22. Nxb4 {[%emt 0:00:30]} Qxb4 {[%emt 0:00:57]} 23. b3 {[%emt 0:00:37]} Nbd7 {[%emt 0:01:00]} 24. Rc1 {[%emt 0:04:55]} Rcd8 {[%emt 0:04:47]} 25. Rfe1 {[%emt 0:05:23]} Qe7 {[%emt 0:04:12]} 26. Qc3 {[%emt 0:01:38]} Ra8 {[%emt 0:00:19]} 27. Qc4 {[%emt 0:02:34]} Nb6 {[%emt 0:00:27]} 28. Qc5 {[%emt 0:06:24]} Qxc5 {[%emt 0:03:32]} 29. Rxc5 {[%emt 0:00:07]} Re7 {[%emt 0:00:39]} 30. Rcc1 {[%emt 0:02:06]} Nbd7 {[%emt 0:01:34]} 31. e5 {[%emt 0:01:56]} Ne8 {[%emt 0:01:56]} 32. d5 {[%emt 0:08:57]} cxd5 {[%emt 0:01:08]} 33. Bxd5 {[%emt 0:00:03]} Nf8 {[%emt 0:03:14]} 34. Bc4 {[%emt 0:05:53]} Ne6 {[%emt 0:01:17]} 35. Rcd1 {[%emt 0:00:19]} Rc7 {[%emt 0:02:55]} 36. Rd5 {[%emt 0:00:36]} Rc6 {[%emt 0:00:41]} 37. Red1 {[%emt 0:00:53]} Kf8 {[%emt 0:01:49]} 38. Kg2 {[%emt 0:00:41]} N8c7 {[%emt 0:03:15]} 39. Rd6 {[%emt 0:01:01]} Ke7 {[%emt 0:03:51]} 40. Rd7+ {[%emt 0:02:52]} Ke8 {[%emt 0:01:19]} 41. h4 {[%emt 0:02:02]} Rd8 {[%emt 0:00:53]} 42. Rxd8+ {[%emt 0:00:35]} Nxd8 {[%emt 0:00:06]} 43. Kf3 {[%emt 0:02:38]} Ke7 {[%emt 0:01:41]} 44. Be3 {[%emt 0:00:14]} Nde6 {[%emt 0:00:51]} 45. Ke4 {[%emt 0:02:39]} Nc5+ {[%emt 0:02:35]} 46. Bxc5+ {[%emt 0:01:05]} Rxc5 {[%emt 0:00:03]} 47. g4 {[%emt 0:00:43]} f6 {[%emt 0:01:40]} 48. exf6+ {[%emt 0:00:07]} gxf6 {[%emt 0:00:07]} 49. Kf3 {[%emt 0:00:38]} b5 {[%emt 0:09:41]} 50. axb5 {[%emt 0:00:08]} Nxb5 {[%emt 0:00:04]} 51. Re1+ {[%emt 0:00:23]} Kf8 {[%emt 0:00:12]} 52. Rd1 {[%emt 0:00:55]} Ke7 {[%emt 0:03:16]} 53. Rd5 {[%emt 0:00:52]} Rxd5 {[%emt 0:00:02]} 54. Bxd5 {[%emt 0:00:03]} Kf8 {[%emt 0:00:11]} 55. Ke3 {[%emt 0:00:24]} Kg7 {[%emt 0:01:23]} 56. Kd3 {[%emt 0:00:56]} Kh6 {[%emt 0:00:19]} 57. Kc4 {[%emt 0:00:32]} Na3+ {[%emt 0:00:16]} 58. Kc5 {[%emt 0:02:09]} Nb1 {[%emt 0:02:14]} 59. Bf3 {[%emt 0:00:00]} Nd2 {[%emt 0:00:07]} 60. Bd1 {[%emt 0:00:00]} Nxb3+ {[%emt 0:00:18]} 61. Bxb3 {[%emt 0:00:00]} f5 {[%emt 0:00:10]} 62. Bd1 {[%emt 0:00:12]} fxg4 {[%emt 0:00:16]} 63. Bxg4 {[%emt 0:00:11]} g5 {[%emt 0:00:11]} 64. h5 {[%emt 0:00:27]} a4 {[%emt 0:00:14]} 65. Kb4 {[%emt 0:00:02]} a3 {[%emt 0:00:06]} 66. Kxa3 {[%emt 0:00:02]} Kg7 {[%emt 0:00:14]} 67. Kb3 {[%emt 0:00:07]} 1/2-1/2